fUST/lending_fUST_20250729
["ID","MTS","AMOUNT","RATE_DAILY","PERIOD"]
[375713220,1753721457435,-169.352687,0.000215,2]
[375713222,1753721457445,-450.684631,0.000215,2]
[375713224,1753721457455,-450.684631,0.000215,2]
[375713226,1753721457464,-450.684631,0.000215,2]
[375713228,1753721457475,-450.684631,0.000215,2]
[375713230,1753721457485,-151.0,0.000215,2]
[375713232,1753721457495,-151.0,0.000215,2]
[375713234,1753721457505,-151.0,0.000215,2]
[375713236,1753721457515,-151.0,0.000215,2]
[375713238,1753721457524,-363.454793,0.000215,2]
[375713240,1753721457533,-363.454793,0.000215,2]
[375713242,1753721457543,-363.454793,0.000215,2]
[375713244,1753721457552,-363.454793,0.000215,2]
[375713246,1753721457561,-151.815318,0.000215,2]
[375713248,1753721457571,-1041.107892,0.000215,2]
[375713250,1753721457580,-1041.107892,0.000215,2]
[375713252,1753721457590,-1041.107892,0.000215,2]
[375713254,1753721457599,-1041.107892,0.000215,2]
[375713256,1753721457608,-151.0,0.000215,2]
[375713258,1753721457618,-151.0,0.000215,2]
[375713260,1753721457628,-5147.62,0.000215,2]
[375713262,1753721457639,-151.0,0.000215,2]
[375713264,1753721457648,-151.0,0.000215,2]
[375713266,1753721457660,-252.58279,0.000215,2]
[375713268,1753721457670,-578.662412,0.000215,2]
[375713270,1753721457680,-578.662412,0.000215,2]
[375713272,1753721457689,-578.662412,0.000215,2]
[375713273,1753721457699,-578.662412,0.000215,2]
[375713275,1753721457708,-403.596295,0.000215,2]
[375713277,1753721457717,-169.007813,0.000215,2]
[375713280,1753721457726,-169.007813,0.000215,2]
[375713282,1753721457736,-403.596295,0.000215,2]
[375713283,1753721457745,-151.0,0.000215,2]
[375713284,1753721457754,-151.0,0.000215,2]
[375713285,1753721457763,-203.173675,0.000215,2]
[375713286,1753721457773,-151.0,0.000215,2]
[375713287,1753721457784,-151.0,0.000215,2]
[375713288,1753721457793,-151.0,0.000215,2]
[375713289,1753721457802,-151.0,0.000215,2]
[375713291,1753721457811,-151.0,0.000215,2]
[375713293,1753721457820,-151.0,0.000215,2]
[375713295,1753721457829,-667.93489,0.000215,2]
[375713297,1753721457838,-1479.053287,0.000215,2]
[375713299,1753721457848,-1479.053287,0.000215,2]
[375713301,1753721457857,-151.0,0.000215,2]
[375713302,1753721457866,-151.0,0.000215,2]
[375713304,1753721457876,-151.0,0.000215,2]
[375713306,1753721457887,-151.0,0.000215,2]
[375713308,1753721457896,-151.0,0.000215,2]
[375713310,1753721457908,-151.0,0.000215,2]
[375713312,1753721457918,-151.0,0.000215,2]
[375713314,1753721457928,-359.166529,0.000215,2]
[375713316,1753721457938,-359.166529,0.000215,2]
[375713318,1753721457952,-359.166529,0.000215,2]
[375713320,1753721457970,-359.166529,0.000215,2]
[375713322,1753721457979,-151.0,0.000215,2]
[375713324,1753721457988,-151.0,0.000215,2]
[375713326,1753721457998,-151.0,0.000215,2]
[375713328,1753721458008,-151.0,0.000215,2]
[375713330,1753721458017,-151.0,0.000215,2]
[375713332,1753721458027,-151.0,0.000215,2]
[375713334,1753721458036,-151.0,0.000215,2]
[375713336,1753721458045,-151.0,0.000215,2]
[375713338,1753721458054,-151.0,0.000215,2]
[375713340,1753721458063,-199.623836,0.000215,2]
[375713342,1753721458072,-151.0,0.000215,2]
[375713344,1753721458081,-151.0,0.000215,2]
[375713346,1753721458090,-151.0,0.000215,2]
[375713348,1753721458099,-151.0,0.000215,2]
[375713350,1753721458108,-175.130423,0.000215,2]
[375713352,1753721458117,-151.0,0.000215,2]
[375713354,1753721458126,-151.0,0.000215,2]
[375713356,1753721458136,-151.0,0.000215,2]
[375713358,1753721458145,-151.0,0.000215,2]
[375713360,1753721458155,-341.175063,0.000215,2]
[375713361,1753721458165,-341.175063,0.000215,2]
[375713363,1753721458175,-341.175063,0.000215,2]
[375713366,1753721458185,-341.175063,0.000215,2]
[375713368,1753721458195,-304.186765,0.000215,2]
[375713370,1753721458205,-304.186765,0.000215,2]
[375713371,1753721458215,-304.186765,0.000215,2]
[375713373,1753721458226,-304.186765,0.000215,2]
[375713375,1753721458245,-151.0,0.000215,2]
[375713377,1753721458261,-151.0,0.000215,2]
[375713379,1753721458271,-151.0,0.000215,2]
[375713381,1753721458281,-151.0,0.000215,2]
[375713383,1753721458291,-151.0,0.000215,2]
[375713385,1753721458300,-151.0,0.000215,2]
[375713387,1753721458310,-151.0,0.000215,2]
[375713389,1753721458320,-151.0,0.000215,2]
[375713391,1753721458329,-151.0,0.000215,2]
[375713393,1753721458338,-151.0,0.000215,2]
[375713395,1753721458348,-329.681481,0.000215,2]
[375713397,1753721458357,-329.681481,0.000215,2]
[375713399,1753721458366,-329.681481,0.000215,2]
[375713401,1753721458375,-329.681481,0.000215,2]
[375713403,1753721458385,-475.0,0.00021536,2]
[375713405,1753721458394,-2124.0,0.00021544,2]
[375713407,1753721458405,-178.729,0.00021546,2]
[375713409,1753721458414,-1739.393,0.00021546,2]
[375713411,1753721458423,-475.0,0.00021597,2]
[375713413,1753721458432,-151.0,0.000216,3]
[375713415,1753721458441,-1024.3,0.00021605,4]
[375713417,1753721458451,-419.70348114,0.00021616,2]
[375713418,1753721458460,-2000.0,0.00021616,2]
[375713420,1753721458470,-2000.0,0.00021616,2]
[375713422,1753721458479,-460.0,0.00021643,2]
[375713424,1753721458488,-4675.94,0.00021643,2]
[375713426,1753721458497,-460.0,0.00021643,2]
[375713428,1753721458507,-460.0,0.00021643,2]
[375713430,1753721458516,-861.78,0.00021643,2]
[375713432,1753721458525,-626.47,0.00021643,2]
[375713434,1753721458534,-622.55,0.00021643,2]
[375713436,1753721458543,-580.94724231,0.00021643,2]
[375713438,1753721458553,-1363.32,0.00021643,2]
[375713440,1753721458562,-460.0,0.00021643,2]
[375713442,1753721458571,-702.27,0.00021643,2]
[375713444,1753721458580,-460.0,0.00021643,2]
[375713446,1753721458590,-460.0,0.00021643,2]
[375713448,1753721458599,-460.0,0.00021643,2]
[375713450,1753721458610,-460.0,0.00021643,2]
[375713452,1753721458619,-2155.68,0.00021643,2]
[375713454,1753721458629,-743.23,0.00021643,2]
[375713456,1753721458639,-460.0,0.00021643,2]
[375713458,1753721458648,-605.73,0.00021643,2]
[375713460,1753721458659,-525.4,0.00021643,2]
[375713462,1753721458668,-460.0,0.00021643,2]
[375713464,1753721458677,-460.0,0.00021643,2]
[375713466,1753721458687,-460.0,0.00021643,2]
[375713468,1753721458696,-460.0,0.00021643,2]
[375713470,1753721458706,-460.0,0.00021643,2]
[375713472,1753721458714,-622.32,0.00021643,2]
[375713474,1753721458723,-460.0,0.00021643,2]
[375713476,1753721458733,-849.57,0.00021643,2]
[375713478,1753721458742,-649.09,0.00021643,2]
[375713480,1753721458753,-460.0,0.00021643,2]
[375713482,1753721458762,-624.98,0.00021643,2]
[375713484,1753721458771,-460.0,0.00021643,2]
[375713486,1753721458780,-460.0,0.00021643,2]
[375713488,1753721458789,-2187.3,0.00021643,2]
[375713490,1753721458798,-706.71,0.00021643,2]
[375713492,1753721458807,-1711.04,0.00021643,2]
[375713494,1753721458816,-2804.95,0.00021643,2]
[375713496,1753721458826,-460.0,0.00021643,2]
[375713498,1753721458835,-460.0,0.00021643,2]
[375713500,1753721458845,-751.0,0.00021643,2]
[375713502,1753721458854,-460.0,0.00021643,2]
[375713504,1753721458863,-704.84,0.00021643,2]
[375713506,1753721458876,-475.79,0.00021643,2]
[375713508,1753721458885,-2666.61,0.00021643,2]
[375713513,1753721458929,-460.0,0.00021643,2]
[375713515,1753721458939,-460.0,0.00021643,2]
[375713517,1753721458948,-460.0,0.00021643,2]
[375713519,1753721458957,-542.47,0.00021643,2]
[375713521,1753721458967,-650.72,0.00021643,2]
[375713523,1753721458976,-460.0,0.00021643,2]
[375713525,1753721458985,-1183.38,0.00021643,2]
[375713527,1753721458994,-460.0,0.00021643,2]
[375713529,1753721459004,-460.0,0.00021643,2]
[375713531,1753721459013,-2681.56,0.00021643,2]
[375713533,1753721459022,-593.36,0.00021643,2]
[375713535,1753721459031,-460.0,0.00021643,2]
[375713537,1753721459041,-1502.79,0.00021643,2]
[375713539,1753721459050,-460.0,0.00021643,2]
[375713541,1753721459060,-535.87,0.00021643,2]
[375713543,1753721459069,-460.0,0.00021643,2]
[375713545,1753721459079,-1386.76,0.00021643,2]
[375713547,1753721459088,-528.52,0.00021643,2]
[375713549,1753721459098,-768.3,0.00021643,2]
[375713551,1753721459107,-2222.21,0.00021643,2]
[375713553,1753721459117,-523.99,0.00021643,2]
[375713555,1753721459126,-460.0,0.00021643,2]
[375713557,1753721459135,-460.0,0.00021643,2]
[375713559,1753721459144,-532.78,0.00021643,2]
[375713561,1753721459155,-460.0,0.00021643,2]
[375713563,1753721459164,-643.34,0.00021643,2]
[375713565,1753721459174,-2255.73,0.00021643,2]
[375713566,1753721459182,-4716.04,0.00021643,2]
[375713568,1753721459192,-1711.81,0.00021643,2]
[375713570,1753721459201,-460.0,0.00021643,2]
[375713572,1753721459212,-297.37863461,0.00021643,2]
[375713574,1753721459221,-460.0,0.00021643,2]
[375713576,1753721459230,-460.0,0.00021643,2]
[375713578,1753721459239,-460.0,0.00021643,2]
[375713580,1753721459249,-460.0,0.00021643,2]
[375713582,1753721459259,-151.0,0.00021644,2]
[375713584,1753721459268,-151.0,0.00021644,2]
[375713586,1753721459278,-151.0,0.00021644,2]
[375713588,1753721459287,-199.42810281,0.00021644,2]
[375713590,1753721459297,-151.0,0.00021644,2]
[375713592,1753721459307,-151.0,0.00021644,2]
[375713594,1753721459316,-245.0,0.00021644,2]
[375713596,1753721459327,-769.0,0.00021644,2]
[375713598,1753721459338,-475.0,0.00021649,2]
[375713600,1753721459348,-475.0,0.00021659,2]
[375713602,1753721459357,-1500.0,0.00021664,2]
[375713604,1753721459367,-153.0,0.00021671,2]
[375713606,1753721459377,-153.0,0.00021671,2]
[375713608,1753721459386,-153.0,0.00021671,2]
[375713610,1753721459396,-153.0,0.00021671,2]
[375713612,1753721459409,-475.0,0.00021686,2]
[375713614,1753721459419,-39538.08313054,0.00021739,2]
[375713616,1753721459429,-475.0,0.00021746,2]
[375713618,1753721459439,-475.0,0.00021746,2]
[375713620,1753721459448,-3783.73655168,0.00021817,2]
[375713622,1753721459458,-2159.0,0.00021819,2]
[375713624,1753721459468,-972.678,0.00021819,2]
[375713626,1753721459478,-2124.0,0.0002183,2]
[375713628,1753721459487,-188.47436,0.00021841,2]
[375713630,1753721459497,-578.0900773,0.00021842,2]
[375713632,1753721459507,-578.0900773,0.00021842,2]
[375713634,1753721459516,-260.0,0.0002187,2]
[375713636,1753721459526,-2124.0,0.00021897,2]
[375713638,1753721459536,-159.496458,0.00021917,2]
[375713640,1753721459545,-224.855213,0.00021917,2]
[375713642,1753721459555,-151.0,0.00021917,2]
[375713643,1753721459565,-151.0,0.00021917,2]
[375713645,1753721459574,-151.0,0.00021917,2]
[375713648,1753721459584,-169.352687,0.00021917,2]
[375713650,1753721459594,-151.0,0.00021917,2]
[375713652,1753721459603,-169.352687,0.00021917,2]
[375713654,1753721459612,-450.684631,0.00021917,2]
[375713656,1753721459622,-450.684631,0.00021917,2]
[375713658,1753721459632,-151.0,0.00021917,2]
[375713660,1753721459641,-151.0,0.00021917,2]
[375713662,1753721459650,-363.454793,0.00021917,2]
[375713664,1753721459663,-363.454793,0.00021917,2]
[375713666,1753721459675,-1041.107892,0.00021917,2]
[375713667,1753721459685,-1041.107892,0.00021917,2]
[375713670,1753721459695,-151.0,0.00021917,2]
[375713671,1753721459705,-151.0,0.00021917,2]
[375713673,1753721459715,-151.0,0.00021917,2]
[375713676,1753721459724,-151.0,0.00021917,2]
[375713677,1753721459733,-151.0,0.00021917,2]
[375713680,1753721459743,-151.0,0.00021917,2]
[375713681,1753721459752,-460.0,0.00021917,2]
[375713683,1753721459761,-410.323039,0.00021917,2]
[375713686,1753721459770,-410.323039,0.00021917,2]
[375713687,1753721459780,-578.662412,0.00021917,2]
[375713689,1753721459789,-151.0,0.00021917,2]
[375713691,1753721459798,-578.662412,0.00021917,2]
[375713693,1753721459808,-4675.94,0.00021917,2]
[375713696,1753721459817,-151.0,0.00021917,2]
[375713698,1753721459827,-460.0,0.00021917,2]
[375713700,1753721459836,-460.0,0.00021917,2]
[375713702,1753721459846,-313.001072,0.00021917,2]
[375713704,1753721459855,-313.001072,0.00021917,2]
[375713706,1753721459865,-151.0,0.00021917,2]
[375713708,1753721459874,-227.718071,0.00021917,2]
[375713710,1753721459887,-861.78,0.00021917,2]
[375713712,1753721459896,-403.596295,0.00021917,2]
[375713714,1753721459906,-169.007813,0.00021917,2]
[375713716,1753721459915,-169.007813,0.00021917,2]
[375713717,1753721459925,-403.596295,0.00021917,2]
[375713720,1753721459935,-151.0,0.00021917,2]
[375713721,1753721459944,-626.47,0.00021917,2]
[375713724,1753721459953,-622.55,0.00021917,2]
[375713726,1753721459964,-306.813702,0.00021917,2]
[375713728,1753721459973,-306.813702,0.00021917,2]
[375713730,1753721459982,-151.0,0.00021917,2]
[375713732,1753721459992,-151.0,0.00021917,2]
[375713734,1753721460001,-151.0,0.00021917,2]
[375713736,1753721460011,-1363.32,0.00021917,2]
[375713738,1753721460020,-151.0,0.00021917,2]
[375713740,1753721460030,-667.93489,0.00021917,2]
[375713742,1753721460040,-460.0,0.00021917,2]
[375713744,1753721460051,-702.27,0.00021917,2]
[375713746,1753721460060,-197.61957,0.00021917,2]
[375713748,1753721460071,-197.61957,0.00021917,2]
[375713750,1753721460081,-460.0,0.00021917,2]
[375713752,1753721460091,-460.0,0.00021917,2]
[375713754,1753721460101,-1479.053287,0.00021917,2]
[375713756,1753721460111,-1479.053287,0.00021917,2]
[375713758,1753721460120,-151.0,0.00021917,2]
[375713760,1753721460130,-151.0,0.00021917,2]
[375713762,1753721460139,-151.0,0.00021917,2]
[375713764,1753721460149,-460.0,0.00021917,2]
[375713766,1753721460160,-460.0,0.00021917,2]
[375713768,1753721460171,-359.166529,0.00021917,2]
[375713770,1753721460180,-359.166529,0.00021917,2]
[375713772,1753721460191,-151.0,0.00021917,2]
[375713774,1753721460201,-151.0,0.00021917,2]
[375713776,1753721460213,-151.0,0.00021917,2]
[375713778,1753721460223,-151.0,0.00021917,2]
[375713781,1753721460235,-743.23,0.00021917,2]
[375713783,1753721460245,-2155.68,0.00021917,2]
[375713784,1753721460255,-605.73,0.00021917,2]
[375713786,1753721460265,-151.0,0.00021917,2]
[375713789,1753721460278,-525.4,0.00021917,2]
[375713791,1753721460288,-557.65162102,0.00021917,2]
[375713793,1753721460299,-460.0,0.00021917,2]
[375713795,1753721460309,-460.0,0.00021917,2]
[375713797,1753721460319,-460.0,0.00021917,2]
[375713799,1753721460328,-460.0,0.00021917,2]
[375713800,1753721460337,-151.0,0.00021917,2]
[375713801,1753721460347,-460.0,0.00021917,2]
[375713802,1753721460357,-622.32,0.00021917,2]
[375713803,1753721460366,-849.57,0.00021917,2]
[375713804,1753721460376,-151.0,0.00021917,2]
[375713805,1753721460386,-649.09,0.00021917,2]
[375713806,1753721460395,-460.0,0.00021917,2]
[375713807,1753721460405,-624.98,0.00021917,2]
[375713808,1753721460414,-460.0,0.00021917,2]
[375713809,1753721460423,-151.0,0.00021917,2]
[375713810,1753721460433,-2187.3,0.00021917,2]
[375713811,1753721460444,-706.71,0.00021917,2]
[375713812,1753721460454,-1711.04,0.00021917,2]
[375713813,1753721460463,-2804.95,0.00021917,2]
[375713814,1753721460476,-460.0,0.00021917,2]
[375713815,1753721460487,-460.0,0.00021917,2]
[375713817,1753721460496,-751.0,0.00021917,2]
[375713819,1753721460507,-460.0,0.00021917,2]
[375713821,1753721460516,-704.84,0.00021917,2]
[375713823,1753721460526,-475.79,0.00021917,2]
[375713825,1753721460535,-2666.61,0.00021917,2]
[375713827,1753721460545,-341.175063,0.00021917,2]
[375713829,1753721460554,-460.0,0.00021917,2]
[375713831,1753721460564,-341.175063,0.00021917,2]
[375713833,1753721460574,-460.0,0.00021917,2]
[375713835,1753721460584,-460.0,0.00021917,2]
[375713837,1753721460594,-304.186765,0.00021917,2]
[375713839,1753721460604,-650.72,0.00021917,2]
[375713841,1753721460613,-304.186765,0.00021917,2]
[375713843,1753721460623,-460.0,0.00021917,2]
[375713845,1753721460632,-1183.38,0.00021917,2]
[375713847,1753721460642,-510.00000044,0.00021917,2]
[375713849,1753721460652,-2681.56,0.00021917,2]
[375713851,1753721460663,-593.36,0.00021917,2]
[375713853,1753721460673,-460.0,0.00021917,2]
[375713855,1753721460683,-1502.79,0.00021917,2]
[375713857,1753721460693,-460.0,0.00021917,2]
[375713859,1753721460703,-151.0,0.00021917,2]
[375713861,1753721460712,-535.87,0.00021917,2]
[375713863,1753721460722,-460.0,0.00021917,2]
[375713865,1753721460731,-151.0,0.00021917,2]
[375713867,1753721460741,-1386.76,0.00021917,2]
[375713869,1753721460751,-528.52,0.00021917,2]
[375713871,1753721460760,-151.0,0.00021917,2]
[375713873,1753721460770,-768.3,0.00021917,2]
[375713875,1753721460781,-2222.21,0.00021917,2]
[375713877,1753721460791,-523.99,0.00021917,2]
[375713879,1753721460801,-151.0,0.00021917,2]
[375713881,1753721460810,-460.0,0.00021917,2]
[375713883,1753721460819,-460.0,0.00021917,2]
[375713885,1753721460829,-532.78,0.00021917,2]
[375713887,1753721460838,-460.0,0.00021917,2]
[375713889,1753721460848,-643.34,0.00021917,2]
[375713891,1753721460858,-2255.73,0.00021917,2]
[375713893,1753721460871,-4716.04,0.00021917,2]
[375713895,1753721460884,-1711.81,0.00021917,2]
[375713897,1753721460894,-151.0,0.00021917,2]
[375713899,1753721460903,-460.0,0.00021917,2]
[375713901,1753721460915,-329.681481,0.00021917,2]
[375713903,1753721460924,-460.0,0.00021917,2]
[375713905,1753721460934,-329.681481,0.00021917,2]
[375713907,1753721460946,-460.0,0.00021917,2]
[375713909,1753721460956,-460.0,0.00021917,2]
[375713911,1753721460966,-460.0,0.00021917,2]
[375713913,1753721460975,-624.113974,0.00021918,2]
[375713915,1753721460985,-624.113974,0.00021918,2]
[375713917,1753721460994,-624.113974,0.00021918,2]
[375713919,1753721461004,-624.113974,0.00021918,2]
[375713921,1753721461014,-624.113974,0.00021918,2]
[375713923,1753721461023,-624.113974,0.00021918,2]
[375713925,1753721461034,-151.0,0.00021918,2]
[375713927,1753721461043,-151.0,0.00021918,2]
[375713929,1753721461052,-201.05852936,0.00021918,2]
[375713931,1753721461062,-151.0,0.00021918,2]
[375713933,1753721461071,-245.05000522,0.00021918,2]
[375713935,1753721461081,-769.0,0.00021918,2]
[375713937,1753721461090,-151.0,0.00021921,7]
[375713939,1753721461100,-170.182503,0.00021921,7]
[375713941,1753721461109,-170.182503,0.00021921,7]
[375713943,1753721461120,-151.0,0.00021921,7]
[375713945,1753721461129,-151.0,0.00021921,7]
[375713947,1753721461139,-2124.0,0.00021939,2]
[375713949,1753721461149,-1000.0,0.00021953,5]
[375713951,1753721461160,-150.0,0.00021957,2]
[375713952,1753721461170,-150.0,0.00021957,2]
[375713954,1753721461180,-150.0,0.00021957,2]
[375713957,1753721461191,-150.0,0.00021957,2]
[375713958,1753721461201,-150.821,0.00021957,2]
[375713961,1753721461211,-2124.0,0.00021964,2]
[375713963,1753721461222,-1024.3,0.00021971,4]
[375713966,1753721461241,-200.0,0.00021999,2]
[375713968,1753721461255,-1189.98,0.00022,7]
[375713970,1753721461267,-13213.15,0.00022,7]
[375713972,1753721461279,-3031.72,0.00022,7]
[375713974,1753721461290,-551.48610052,0.00022,2]
[375713977,1753721461302,-2005.94101031,0.00022,3]
[375713979,1753721461313,-151.0,0.00022,7]
[375713981,1753721461325,-37609.08,0.00022,2]
[375713983,1753721461337,-160.0,0.00022,7]
[375713985,1753721461348,-151.0,0.00022,7]
[375713987,1753721461359,-353.30824519,0.00022,2]
[375713990,1753721461370,-48306.4034807,0.00022,2]
[375713992,1753721461380,-151.0,0.00022,7]
[375713994,1753721461390,-151.0,0.00022,7]
[375713996,1753721461401,-359.166529,0.00022,7]
[375713998,1753721461416,-359.166529,0.00022,7]
[375714000,1753721461428,-12634.73134317,0.00022,7]
[375714002,1753721461439,-151.0,0.00022,7]
[375714005,1753721461448,-151.0,0.00022,7]
[375714007,1753721461459,-312.16666667,0.00022,7]
[375714009,1753721461469,-304.186765,0.00022,7]
[375714011,1753721461478,-304.186765,0.00022,7]
[375714013,1753721461489,-151.0,0.00022,7]
[375714015,1753721461499,-151.0,0.00022,7]
[375714017,1753721461509,-214.87999826,0.00022,7]
[375714019,1753721461519,-151.0,0.00022,7]
[375714021,1753721461528,-208.185707,0.00022,7]
[375714023,1753721461538,-151.0,0.00022,7]
[375714025,1753721461548,-288.1,0.00022,2]
[375714027,1753721461560,-329.681481,0.00022,7]
[375714029,1753721461569,-329.681481,0.00022,7]
[375714031,1753721461580,-177.0,0.00022,2]
[375714033,1753721461589,-1000.0,0.00022021,2]
[375714035,1753721461599,-508.03497979,0.00022021,2]
[375714037,1753721461608,-1000.0,0.00022021,2]
[375714039,1753721461618,-1000.0,0.00022021,2]
[375714041,1753721461628,-1000.0,0.00022021,2]
[375714043,1753721461637,-1000.0,0.00022021,2]
[375714045,1753721461647,-1000.0,0.00022021,2]
[375714047,1753721461657,-1000.0,0.00022021,2]
[375714049,1753721461667,-223.80859837,0.00022021,2]
[375714051,1753721461678,-1000.0,0.00022021,2]
[375714053,1753721461688,-151.0,0.00022021,7]
[375714056,1753721461698,-151.0,0.00022021,7]
[375714058,1753721461708,-624.113974,0.00022021,7]
[375714060,1753721461718,-624.113974,0.00022021,7]
[375714062,1753721461728,-151.0,0.00022021,7]
[375714064,1753721461738,-151.0,0.00022021,7]
[375714066,1753721461748,-151.0,0.00022021,7]
[375714068,1753721461759,-151.0,0.00022021,7]
[375714081,1753721461772,-151.0,0.00022021,7]
[375714083,1753721461907,-151.0,0.00022021,7]
[375714085,1753721461918,-341.175063,0.00022021,7]
[375714087,1753721461927,-341.175063,0.00022021,7]
[375714089,1753721461937,-188.47436,0.00022053,4]
[375714091,1753721461946,-1143.66814298,0.00022091,2]
[375714093,1753721461955,-179.73040439,0.00022092,2]
[375714095,1753721461966,-4005.43475247,0.000221,2]
[375714097,1753721461975,-667.93489,0.00022137,7]
[375714099,1753721461984,-1479.053287,0.00022137,7]
[375714101,1753721461994,-1479.053287,0.00022137,7]
[375714103,1753721462004,-159.96274811,0.00022164,2]
[375714105,1753721462014,-2500.0,0.00022164,2]
[375714107,1753721462023,-347.20436139,0.0002219,2]
[375714109,1753721462032,-317.50395478,0.00022191,2]
[375714111,1753721462041,-151.0,0.00022191,7]
[375714112,1753721462051,-151.0,0.00022191,7]
[375714114,1753721462060,-151.0,0.00022191,7]
[375714116,1753721462070,-151.0,0.00022191,7]
[375714118,1753721462079,-151.0,0.00022191,7]
[375714120,1753721462089,-151.0,0.00022191,7]
[375714122,1753721462098,-460.0,0.00022191,2]
[375714124,1753721462107,-410.323039,0.00022191,7]
[375714126,1753721462116,-410.323039,0.00022191,7]
[375714128,1753721462126,-151.0,0.00022191,7]
[375714130,1753721462135,-4675.94,0.00022191,2]
[375714132,1753721462144,-151.0,0.00022191,7]
[375714134,1753721462153,-460.0,0.00022191,2]
[375714136,1753721462163,-448.54898413,0.00022191,2]
[375714138,1753721462172,-313.001072,0.00022191,7]
[375714140,1753721462182,-313.001072,0.00022191,7]
[375714142,1753721462191,-151.0,0.00022191,7]
[375714144,1753721462200,-861.78,0.00022191,2]
[375714146,1753721462209,-403.596295,0.00022191,7]
[375714148,1753721462218,-169.007813,0.00022191,7]
[375714150,1753721462228,-169.007813,0.00022191,7]
[375714152,1753721462238,-403.596295,0.00022191,7]
[375714154,1753721462248,-151.0,0.00022191,7]
[375714156,1753721462257,-626.47,0.00022191,2]
[375714157,1753721462266,-622.55,0.00022191,2]
[375714159,1753721462275,-306.813702,0.00022191,7]
[375714161,1753721462285,-306.813702,0.00022191,7]
[375714163,1753721462295,-1363.32,0.00022191,2]
[375714165,1753721462304,-460.0,0.00022191,2]
[375714167,1753721462314,-702.27,0.00022191,2]
[375714169,1753721462323,-197.61957,0.00022191,7]
[375714171,1753721462333,-197.61957,0.00022191,7]
[375714173,1753721462343,-460.0,0.00022191,2]
[375714175,1753721462353,-460.0,0.00022191,2]
[375714177,1753721462362,-460.0,0.00022191,2]
[375714179,1753721462372,-460.0,0.00022191,2]
[375714181,1753721462382,-743.23,0.00022191,2]
[375714183,1753721462392,-2155.68,0.00022191,2]
[375714185,1753721462402,-605.73,0.00022191,2]
[375714187,1753721462412,-525.4,0.00022191,2]
[375714189,1753721462422,-460.0,0.00022191,2]
[375714191,1753721462432,-460.0,0.00022191,2]
[375714193,1753721462441,-460.0,0.00022191,2]
[375714195,1753721462450,-460.0,0.00022191,2]
[375714197,1753721462459,-622.32,0.00022191,2]
[375714199,1753721462469,-849.57,0.00022191,2]
[375714201,1753721462478,-649.09,0.00022191,2]
[375714203,1753721462487,-460.0,0.00022191,2]
[375714205,1753721462496,-624.98,0.00022191,2]
[375714207,1753721462505,-460.0,0.00022191,2]
[375714209,1753721462514,-2187.3,0.00022191,2]